[Event "2nd Cambridge Open 2024"]
[Site "Cambridge"]
[Date "2024.02.22"]
[Round "6.39"]
[White "McMahon, Paul"]
[Black "Southcott-Moyers, Indy"]
[Result "0-1"]
[ECO "B10"]
[WhiteElo "1862"]
[BlackElo "2123"]
[Annotator "RC"]
[PlyCount "112"]
[EventDate "2024.02.18"]
[EventType "swiss"]
[EventCountry "ENG"]
[SourceTitle "playchess.com"]
[Source "ChessBase"]
[SourceQuality "1"]
[TimeControl "5400+30"]

1. e4 {[%emt 0:00:04]} c6 {[%emt 0:00:03]} 2. Nf3 {[%emt 0:00:11]} d5 {[%emt 0:00:02]} 3. exd5 {[%emt 0:00:12]} cxd5 {[%emt 0:00:06]} 4. Ne5 {[%emt 0:00:19]} Nc6 {[%emt 0:00:56]} 5. d4 {[%emt 0:00:40]} a6 {[%emt 0:00:17]} 6. c3 {[%emt 0:01:30]} Nxe5 {[%emt 0:01:16]} 7. dxe5 {[%emt 0:00:12]} Bf5 {[%emt 0:00:03]} 8. g4 {[%emt 0:04:55]} Be4 {[%emt 0:10:47]} 9. f3 {[%emt 0:01:29]} Bxb1 {[%emt 0:05:25]} 10. Rxb1 {[%emt 0:00:04]} e6 {[%emt 0:00:17]} 11. Be3 {[%emt 0:01:18]} Ne7 {[%emt 0:06:50]} 12. Be2 {[%emt 0:09:24]} h5 {[%emt 0:06:20]} 13. f4 {[%emt 0:16:28]} hxg4 {[%emt 0:09:53]} 14. Bxg4 {[%emt 0:00:20]} Rc8 {[%emt 0:07:39]} 15. Qd3 {[%emt 0:04:09]} g6 {[%emt 0:13:02]} 16. h3 {[%emt 0:04:47]} Rc4 {[%emt 0:04:37]} 17. b3 {[%emt 0:07:21]} Re4 {[%emt 0:04:39]} 18. Rd1 {[%emt 0:08:30]} Nf5 {[%emt 0:02:18]} 19. Qxe4 {[%emt 0:00:13]} dxe4 {[%emt 0:00:04]} 20. Rxd8+ {[%emt 0:00:16]} Kxd8 {[%emt 0:00:05]} 21. Bb6+ {[%emt 0:02:09]} Kd7 {[%emt 0:02:46]} 22. Kf2 {[%emt 0:13:23]} Kc6 {[%emt 0:00:59]} 23. Bd4 {[%emt 0:01:47]} Be7 {[%emt 0:02:51]} 24. Bxf5 {[%emt 0:01:18]} gxf5 {[%emt 0:01:30]} 25. Kg2 {[%emt 0:01:48]} Bf8 {[%emt 0:00:51]} 26. Be3 {[%emt 0:02:38]} Bh6 {[%emt 0:04:39]} 27. Rd1 {[%emt 0:00:28]} Kc7 {[%emt 0:01:05]} 28. Rd6 {[%emt 0:00:27]} Kc8 {[%emt 0:00:31]} 29. Kg3 {[%emt 0:01:21]} Rg8+ {[%emt 0:01:20]} 30. Kf2 {[%emt 0:00:49]} Bf8 {[%emt 0:02:59]} 31. Rd1 {[%emt 0:00:30]} Be7 {[%emt 0:01:12]} 32. Rg1 {[%emt 0:01:31]} Bh4+ {[%emt 0:01:16]} 33. Ke2 {[%emt 0:00:22]} Rg6 {[%emt 0:00:30]} 34. a4 {[%emt 0:00:35]} b5 {[%emt 0:01:57]} 35. axb5 {[%emt 0:00:28]} axb5 {[%emt 0:00:01]} 36. Kd2 {[%emt 0:01:59]} Kb8 {[%emt 0:03:51]} 37. c4 {[%emt 0:01:49]} bxc4 {[%emt 0:00:06]} 38. bxc4 {[%emt 0:00:10]} Kc8 {[%emt 0:00:29]} 39. Rxg6 {[%emt 0:01:54]} fxg6 {[%emt 0:00:04]} 40. Kc3 {[%emt 0:00:26]} Kd7 {[%emt 0:01:01]} 41. Kb3 {[%emt 0:03:38]} Kc6 {[%emt 0:00:06]} 42. Kc2 {[%emt 0:00:38]} Be7 {[%emt 0:01:32]} 43. Bd4 {[%emt 0:01:12]} Bd8 {[%emt 0:01:29]} 44. Kb3 {[%emt 0:00:45]} Ba5 {[%emt 0:01:20]} 45. Kc2 {[%emt 0:00:20]} Bb6 {[%emt 0:01:55]} 46. Kc3 {[%emt 0:00:52]} Bxd4+ {[%emt 0:00:53]} 47. Kxd4 {[%emt 0:00:03]} Kb6 {[%emt 0:00:19]} 48. c5+ {[%emt 0:02:56]} Kb5 {[%emt 0:00:26]} 49. c6 {[%emt 0:00:30]} Kxc6 {[%emt 0:00:07]} 50. Kc4 {[%emt 0:00:09]} Kd7 {[%emt 0:00:33]} 51. Kb3 {[%emt 0:00:54]} Ke7 {[%emt 0:00:06]} 52. Kc4 {[%emt 0:00:39]} Kf7 {[%emt 0:00:04]} 53. Kd4 {[%emt 0:00:19]} Kg7 {[%emt 0:00:07]} 54. Ke3 {[%emt 0:00:10]} Kh6 {[%emt 0:00:03]} 55. Kf2 {[%emt 0:00:14]} Kh5 {[%emt 0:00:10]} 56. Kg3 {[%emt 0:00:29]} g5 {[%emt 0:00:14]} 0-1

[Event "2nd Cambridge Open 2024"]
[Site "Cambridge"]
[Date "2024.02.22"]
[Round "6.40"]
[White "Lazarus, Simon E"]
[Black "Pert, Max"]
[Result "1/2-1/2"]
[ECO "D32"]
[WhiteElo "1845"]
[BlackElo "1950"]
[Annotator "RC"]
[PlyCount "77"]
[EventDate "2024.02.18"]
[EventType "swiss"]
[EventCountry "ENG"]
[SourceTitle "playchess.com"]
[Source "ChessBase"]
[SourceQuality "1"]
[TimeControl "5400+30"]

1. d4 {[%emt 0:00:15]} d5 {[%emt 0:00:13]} 2. c4 {[%emt 0:00:23]} e6 {[%emt 0:00:20]} 3. Nc3 {[%emt 0:00:35]} c5 {[%emt 0:00:26]} 4. cxd5 {[%emt 0:00:50]} cxd4 {[%emt 0:00:35]} 5. Qa4+ {[%emt 0:01:11]} Bd7 {[%emt 0:00:33]} 6. Qxd4 {[%emt 0:00:33]} exd5 {[%emt 0:00:38]} 7. Qxd5 {[%emt 0:00:50]} Nf6 {[%emt 0:00:26]} 8. Qd1 {[%emt 0:00:53]} Nc6 {[%emt 0:01:13]} 9. Nf3 {[%emt 0:01:07]} Bc5 {[%emt 0:01:25]} 10. e3 {[%emt 0:01:20]} Qe7 {[%emt 0:01:14]} 11. Be2 {[%emt 0:02:53]} O-O-O {[%emt 0:01:03]} 12. O-O {[%emt 0:02:24]} Kb8 {[%emt 0:01:59]} 13. a3 {[%emt 0:06:11]} g5 {[%emt 0:01:43]} 14. Nd4 {[%emt 0:14:37]} Qe5 {[%emt 0:07:15]} 15. Nf3 {[%emt 0:04:22]} Qe7 {[%emt 0:07:13]} 16. Nd4 {[%emt 0:01:10]} g4 {[%emt 0:14:04]} 17. b4 {[%emt 0:02:32]} Bb6 {[%emt 0:01:39]} 18. Bb2 {[%emt 0:02:55]} Nxd4 {[%emt 0:02:16]} 19. exd4 {[%emt 0:00:17]} Bc6 {[%emt 0:00:37]} 20. b5 {[%emt 0:09:36]} Rxd4 {[%emt 0:09:55]} 21. Qb3 {[%emt 0:05:21]} Bd7 {[%emt 0:03:09]} 22. Nd5 {[%emt 0:20:14]} Nxd5 {[%emt 0:01:02]} 23. Bxd4 {[%emt 0:00:18]} Bxd4 {[%emt 0:00:29]} 24. Qxd5 {[%emt 0:00:49]} Bxa1 {[%emt 0:00:27]} 25. Rxa1 {[%emt 0:00:17]} Rd8 {[%emt 0:04:02]} 26. Bf1 {[%emt 0:01:19]} Bc8 {[%emt 0:01:22]} 27. Qc4 {[%emt 0:01:18]} Be6 {[%emt 0:02:31]} 28. Qe4 {[%emt 0:01:43]} Qf6 {[%emt 0:01:03]} 29. Rc1 {[%emt 0:02:31]} Qb2 {[%emt 0:05:51]} 30. Qf4+ {[%emt 0:01:00]} Ka8 {[%emt 0:00:06]} 31. Qc7 {[%emt 0:00:49]} Qd4 {[%emt 0:00:42]} 32. a4 {[%emt 0:01:28]} Qd6 {[%emt 0:00:54]} 33. Qa5 {[%emt 0:02:22]} b6 {[%emt 0:03:00]} 34. Qe1 {[%emt 0:00:48]} Qd2 {[%emt 0:00:55]} 35. Qe4+ {[%emt 0:01:40]} Qd5 {[%emt 0:00:30]} 36. Qe3 {[%emt 0:00:29]} Qd2 {[%emt 0:01:41]} 37. Qe4+ {[%emt 0:00:14]} Qd5 {[%emt 0:00:04]} 38. Qe3 {[%emt 0:00:14]} Qd2 {[%emt 0:00:06]} 39. Qe4+ {[%emt 0:00:09]} 1/2-1/2

[Event "2nd Cambridge Open 2024"]
[Site "Cambridge"]
[Date "2024.02.22"]
[Round "6.41"]
[White "Homer, Stephen J"]
[Black "Yu, Rock"]
[Result "1/2-1/2"]
[ECO "C01"]
[WhiteElo "2045"]
[BlackElo "1767"]
[Annotator "RC"]
[PlyCount "70"]
[EventDate "2024.02.18"]
[EventType "swiss"]
[EventCountry "ENG"]
[SourceTitle "playchess.com"]
[Source "ChessBase"]
[SourceQuality "1"]
[TimeControl "5400+30"]

1. e4 {[%emt 0:00:02]} e6 {[%emt 0:00:06]} 2. d4 {[%emt 0:00:07]} d5 {[%emt 0:00:01]} 3. Bd3 {[%emt 0:01:24]} dxe4 {[%emt 0:01:55]} 4. Bxe4 {[%emt 0:00:02]} Nf6 {[%emt 0:00:10]} 5. Bf3 {[%emt 0:00:06]} c5 {[%emt 0:03:48]} 6. Ne2 {[%emt 0:00:06]} Nc6 {[%emt 0:06:13]} 7. Be3 {[%emt 0:07:48]} Nd5 {[%emt 0:06:33]} 8. Bxd5 {[%emt 0:05:40]} Qxd5 {[%emt 0:00:51]} 9. Nbc3 {[%emt 0:01:21]} Qd8 {[%emt 0:18:42]} 10. dxc5 {[%emt 0:02:18]} Qa5 {[%emt 0:01:45]} 11. a3 {[%emt 0:06:11]} f5 {[%emt 0:12:39]} 12. b4 {[%emt 0:01:42]} Qc7 {[%emt 0:00:48]} 13. Bf4 {[%emt 0:19:56]} e5 {[%emt 0:01:36]} 14. Nd5 {[%emt 0:00:16]} Qf7 {[%emt 0:01:00]} 15. Bc1 {[%emt 0:07:25]} Be6 {[%emt 0:01:20]} 16. c4 {[%emt 0:01:37]} b6 {[%emt 0:08:10]} 17. Nec3 {[%emt 0:05:23]} bxc5 {[%emt 0:02:00]} 18. Qa4 {[%emt 0:01:05]} Qd7 {[%emt 0:01:39]} 19. O-O {[%emt 0:02:08]} Kf7 {[%emt 0:01:24]} 20. Rd1 {[%emt 0:04:53]} Nd4 {[%emt 0:03:30]} 21. Qxd7+ {[%emt 0:01:02]} Bxd7 {[%emt 0:00:01]} 22. b5 {[%emt 0:00:12]} g6 {[%emt 0:01:21]} 23. a4 {[%emt 0:03:37]} Bg7 {[%emt 0:01:31]} 24. a5 {[%emt 0:00:19]} Be6 {[%emt 0:01:15]} 25. Ra2 {[%emt 0:04:15]} Rhd8 {[%emt 0:01:27]} 26. Bg5 {[%emt 0:01:47]} Rd6 {[%emt 0:23:45]} 27. Rb1 {[%emt 0:03:17]} Rd7 {[%emt 0:00:00]} 28. b6 {[%emt 0:03:25]} Bxd5 {[%emt 0:00:00]} 29. Nxd5 {[%emt 0:00:28]} axb6 {[%emt 0:00:00]} 30. Rxb6 {[%emt 0:00:47]} Rda7 {[%emt 0:00:00]} 31. Be7 {[%emt 0:06:19]} Rxa5 {[%emt 0:00:00]} 32. Rxa5 {[%emt 0:00:27]} Rxa5 {[%emt 0:00:00]} 33. h4 {[%emt 0:00:26]} e4 {[%emt 0:00:00]} 34. Bd6 {[%emt 0:02:07]} Ne2+ {[%emt 0:00:00]} 35. Kh2 {[%emt 0:00:35]} Bd4 {[%emt 0:00:00]} 1/2-1/2

[Event "2nd Cambridge Open 2024"]
[Site "Cambridge"]
[Date "2024.02.22"]
[Round "6.42"]
[White "Mocic, Ivano"]
[Black "Lenton, Oliver J"]
[Result "1-0"]
[ECO "A40"]
[WhiteElo "2008"]
[BlackElo "1787"]
[Annotator "NA RC"]
[PlyCount "49"]
[EventDate "2024.02.18"]
[EventType "swiss"]
[EventCountry "ENG"]
[SourceTitle "playchess.com"]
[Source "ChessBase"]
[SourceQuality "1"]
[TimeControl "5400+30"]

1. d4 {[%emt 0:00:02]} e5 {[%emt 0:00:05]} 2. dxe5 {[%emt 0:00:06]} d6 {[%emt 0:00:02]} 3. exd6 {[%emt 0:00:56]} Bxd6 {[%emt 0:00:05]} 4. Nf3 {[%emt 0:01:09]} Bg4 {[%emt 0:00:04]} 5. e3 {[%emt 0:03:46]} Nc6 {[%emt 0:00:10]} 6. Be2 {[%emt 0:02:44]} Qe7 {[%emt 0:01:58]} 7. O-O {[%emt 0:07:06]} O-O-O {[%emt 0:00:05]} 8. Nbd2 {[%emt 0:02:28]} Nf6 {[%emt 0:04:29]} 9. c3 {[%emt 0:12:45]} h5 {[%emt 0:03:06]} 10. Qc2 {[%emt 0:04:58]} Ne5 {[%emt 0:01:44]} 11. b3 {[%emt 0:11:05]} g5 {[%emt 0:08:38]} 12. Bb2 {[%emt 0:12:44]} Rdg8 {[%emt 0:03:47]} 13. c4 {[%emt 0:03:14]} Ned7 {[%emt 0:10:55]} 14. Rfe1 {[%emt 0:07:12]} h4 {[%emt 0:06:02]} 15. Nd4 {[%emt 0:03:11]} Bxh2+ {[%emt 0:12:53]} 16. Kxh2 {[%emt 0:00:50]} Qd6+ {[%emt 0:03:25]} 17. Kg1 {[%emt 0:01:00]} h3 {[%emt 0:01:13]} 18. g3 {[%emt 0:05:30]} Ne5 {[%emt 0:05:04]} 19. Ne4 {[%emt 0:03:50]} h2+ {[%emt 0:01:28]} 20. Kh1 {[%emt 0:01:22]} Nxe4 {[%emt 0:02:30]} 21. Qxe4 {[%emt 0:00:43]} Bd7 {[%emt 0:01:44]} 22. Nb5 {[%emt 0:03:25]} f5 {[%emt 0:05:55]} 23. Nxd6+ {[%emt 0:02:29]} cxd6 {[%emt 0:00:02]} 24. Qg2 {[%emt 0:01:00]} Bc6 {[%emt 0:01:15]} 25. f3 {[%emt 0:00:13]} 1-0

[Event "2nd Cambridge Open 2024"]
[Site "Cambridge"]
[Date "2024.02.22"]
[Round "6.43"]
[White "Maton, Emily"]
[Black "Hutchinson, Paul A"]
[Result "0-1"]
[ECO "E90"]
[WhiteElo "1736"]
[BlackElo "2013"]
[Annotator "RC"]
[PlyCount "114"]
[EventDate "2024.02.18"]
[EventType "swiss"]
[EventCountry "ENG"]
[SourceTitle "playchess.com"]
[Source "ChessBase"]
[SourceQuality "1"]
[TimeControl "5400+30"]

1. d4 {[%emt 0:00:01]} g6 {[%emt 0:00:06]} 2. Nf3 {[%emt 0:00:06]} Nf6 {[%emt 0:00:05]} 3. c4 {[%emt 0:00:05]} Bg7 {[%emt 0:00:04]} 4. Nc3 {[%emt 0:00:05]} d6 {[%emt 0:00:14]} 5. e4 {[%emt 0:00:07]} O-O {[%emt 0:00:08]} 6. Bd3 {[%emt 0:00:05]} c6 {[%emt 0:00:45]} 7. h3 {[%emt 0:00:29]} a6 {[%emt 0:00:06]} 8. a4 {[%emt 0:00:44]} a5 {[%emt 0:00:06]} 9. Be3 {[%emt 0:02:36]} Na6 {[%emt 0:00:09]} 10. Qd2 {[%emt 0:02:09]} Nb4 {[%emt 0:00:17]} 11. Bb1 {[%emt 0:00:55]} Re8 {[%emt 0:00:07]} 12. O-O {[%emt 0:00:55]} Qc7 {[%emt 0:03:21]} 13. d5 {[%emt 0:05:36]} Nd7 {[%emt 0:00:45]} 14. Nd4 {[%emt 0:10:12]} Nc5 {[%emt 0:06:40]} 15. Ra3 {[%emt 0:01:36]} e5 {[%emt 0:06:16]} 16. dxe6 {[%emt 0:01:06]} Bxe6 {[%emt 0:01:50]} 17. b3 {[%emt 0:04:44]} Rad8 {[%emt 0:01:46]} 18. f4 {[%emt 0:02:49]} Bc8 {[%emt 0:04:52]} 19. f5 {[%emt 0:05:05]} Qe7 {[%emt 0:01:14]} 20. Bh6 {[%emt 0:06:36]} Bh8 {[%emt 0:01:32]} 21. Kh1 {[%emt 0:03:10]} d5 {[%emt 0:06:16]} 22. exd5 {[%emt 0:07:03]} cxd5 {[%emt 0:00:09]} 23. fxg6 {[%emt 0:01:24]} hxg6 {[%emt 0:00:33]} 24. Bg5 {[%emt 0:24:20]} f6 {[%emt 0:01:12]} 25. Bh4 {[%emt 0:01:00]} g5 {[%emt 0:01:49]} 26. Bf2 {[%emt 0:00:50]} Ne4 {[%emt 0:01:38]} 27. Bxe4 {[%emt 0:03:03]} dxe4 {[%emt 0:00:11]} 28. Be3 {[%emt 0:00:10]} Qe5 {[%emt 0:02:24]} 29. Nce2 {[%emt 0:02:46]} f5 {[%emt 0:01:51]} 30. Bxg5 {[%emt 0:02:51]} Rxd4 {[%emt 0:00:50]} 31. Nxd4 {[%emt 0:00:10]} Qxd4 {[%emt 0:00:06]} 32. Qf4 {[%emt 0:02:31]} Qd3 {[%emt 0:01:42]} 33. Bh6 {[%emt 0:00:47]} Kh7 {[%emt 0:02:57]} 34. Rg1 {[%emt 0:01:24]} Be5 {[%emt 0:00:56]} 35. Qh4 {[%emt 0:01:11]} Qg3 {[%emt 0:00:10]} 36. Qxg3 {[%emt 0:00:04]} Bxg3 {[%emt 0:00:08]} 37. Bd2 {[%emt 0:00:27]} Nd3 {[%emt 0:00:25]} 38. Rb1 {[%emt 0:00:34]} e3 {[%emt 0:00:13]} 39. Bxa5 {[%emt 0:00:15]} e2 {[%emt 0:00:36]} 40. Raa1 {[%emt 0:00:17]} f4 {[%emt 0:00:28]} 41. Kg1 {[%emt 0:02:38]} Bf5 {[%emt 0:02:28]} 42. Bd2 {[%emt 0:02:45]} Bf2+ {[%emt 0:02:13]} 43. Kh2 {[%emt 0:00:13]} Bd4 {[%emt 0:00:50]} 44. Ra3 {[%emt 0:01:16]} Be5 {[%emt 0:00:14]} 45. Kg1 {[%emt 0:00:52]} Bd4+ {[%emt 0:04:11]} 46. Kh2 {[%emt 0:00:06]} f3 {[%emt 0:00:22]} 47. gxf3 {[%emt 0:00:32]} Ne5 {[%emt 0:00:09]} 48. Re1 {[%emt 0:02:00]} Nxf3+ {[%emt 0:00:07]} 49. Kg3 {[%emt 0:00:09]} Nxd2 {[%emt 0:00:13]} 50. Ra2 {[%emt 0:00:37]} Bc3 {[%emt 0:00:27]} 51. Kf4 {[%emt 0:01:10]} Bd3 {[%emt 0:00:10]} 52. a5 {[%emt 0:01:38]} Nxb3 {[%emt 0:00:46]} 53. Rexe2 {[%emt 0:00:40]} Bxe2 {[%emt 0:00:34]} 54. a6 {[%emt 0:00:34]} bxa6 {[%emt 0:00:16]} 55. Rxa6 {[%emt 0:00:06]} Bd2+ {[%emt 0:00:13]} 56. Kg3 {[%emt 0:02:56]} Be3 {[%emt 0:00:16]} 57. h4 {[%emt 0:00:00]} Rg8+ {[%emt 0:00:10]} 0-1

[Event "2nd Cambridge Open 2024"]
[Site "Cambridge"]
[Date "2024.02.22"]
[Round "6.44"]
[White "Chan, Michelle (Ngo Yu)"]
[Black "Iyengar, Ilya"]
[Result "0-1"]
[ECO "B81"]
[WhiteElo "1681"]
[BlackElo "1972"]
[Annotator "RC"]
[PlyCount "110"]
[EventDate "2024.02.18"]
[EventType "swiss"]
[EventCountry "ENG"]
[SourceTitle "playchess.com"]
[Source "ChessBase"]
[SourceQuality "1"]
[TimeControl "5400+30"]

1. e4 {[%emt 0:00:01]} c5 {[%emt 0:12:08]} 2. Nf3 {[%emt 0:00:05]} e6 {[%emt 0:00:07]} 3. d4 {[%emt 0:00:05]} cxd4 {[%emt 0:00:08]} 4. Nxd4 {[%emt 0:00:07]} Nf6 {[%emt 0:00:10]} 5. Nc3 {[%emt 0:00:06]} d6 {[%emt 0:00:08]} 6. g4 {[%emt 0:00:32]} h6 {[%emt 0:00:33]} 7. Rg1 {[%emt 0:00:21]} Nc6 {[%emt 0:00:28]} 8. Be3 {[%emt 0:00:20]} a6 {[%emt 0:02:16]} 9. Nxc6 {[%emt 0:00:59]} bxc6 {[%emt 0:00:04]} 10. Qf3 {[%emt 0:00:31]} d5 {[%emt 0:03:11]} 11. O-O-O {[%emt 0:04:01]} Qa5 {[%emt 0:30:41]} 12. Bd4 {[%emt 0:09:51]} Nd7 {[%emt 0:03:03]} 13. exd5 {[%emt 0:05:41]} cxd5 {[%emt 0:01:41]} 14. Bg2 {[%emt 0:03:03]} Bb7 {[%emt 0:15:28]} 15. Rge1 {[%emt 0:00:53]} Rb8 {[%emt 0:12:02]} 16. Ba7 {[%emt 0:03:35]} Ra8 {[%emt 0:04:39]} 17. Bd4 {[%emt 0:06:28]} Rb8 {[%emt 0:00:11]} 18. Qf4 {[%emt 0:01:17]} Be7 {[%emt 0:01:40]} 19. Qg3 {[%emt 0:02:55]} O-O {[%emt 0:01:27]} 20. f4 {[%emt 0:09:32]} Qd8 {[%emt 0:05:45]} 21. g5 {[%emt 0:02:57]} hxg5 {[%emt 0:01:25]} 22. h4 {[%emt 0:00:18]} g4 {[%emt 0:03:21]} 23. Qxg4 {[%emt 0:00:36]} Bf6 {[%emt 0:00:36]} 24. Bh3 {[%emt 0:21:03]} Bxd4 {[%emt 0:00:18]} 25. Rxd4 {[%emt 0:00:02]} Qf6 {[%emt 0:00:13]} 26. Rd3 {[%emt 0:00:27]} Nc5 {[%emt 0:01:14]} 27. Rg3 {[%emt 0:00:49]} Bc8 {[%emt 0:00:22]} 28. Reg1 {[%emt 0:02:40]} g6 {[%emt 0:00:15]} 29. h5 {[%emt 0:00:24]} d4 {[%emt 0:00:52]} 30. Nd1 {[%emt 0:04:28]} Ne4 {[%emt 0:00:29]} 31. R3g2 {[%emt 0:01:40]} e5 {[%emt 0:00:19]} 32. Qf3 {[%emt 0:01:35]} Bxh3 {[%emt 0:00:43]} 33. Qxh3 {[%emt 0:00:04]} Qxf4+ {[%emt 0:00:10]} 34. Kb1 {[%emt 0:00:06]} g5 {[%emt 0:00:33]} 35. Qd3 {[%emt 0:01:10]} f5 {[%emt 0:00:41]} 36. Qxa6 {[%emt 0:03:59]} Rf7 {[%emt 0:00:36]} 37. h6 {[%emt 0:01:27]} Kh7 {[%emt 0:00:26]} 38. Rf1 {[%emt 0:05:13]} Nd2+ {[%emt 0:00:18]} 39. Rxd2 {[%emt 0:01:08]} Qxd2 {[%emt 0:00:05]} 40. Qe6 {[%emt 0:00:35]} Rbf8 {[%emt 0:00:30]} 41. Qxe5 {[%emt 0:00:25]} d3 {[%emt 0:00:22]} 42. Qc3 {[%emt 0:01:09]} dxc2+ {[%emt 0:00:56]} 43. Qxc2 {[%emt 0:00:02]} Qxc2+ {[%emt 0:00:22]} 44. Kxc2 {[%emt 0:00:02]} Kxh6 {[%emt 0:00:22]} 45. a4 {[%emt 0:01:14]} g4 {[%emt 0:00:08]} 46. Rh1+ {[%emt 0:01:02]} Kg5 {[%emt 0:00:49]} 47. b4 {[%emt 0:00:18]} g3 {[%emt 0:01:02]} 48. Rg1 {[%emt 0:01:23]} f4 {[%emt 0:00:19]} 49. b5 {[%emt 0:00:08]} Kh4 {[%emt 0:00:39]} 50. b6 {[%emt 0:00:25]} f3 {[%emt 0:00:08]} 51. Ne3 {[%emt 0:00:16]} f2 {[%emt 0:01:01]} 52. Rf1 {[%emt 0:00:14]} Rf3 {[%emt 0:00:22]} 53. Ng2+ {[%emt 0:00:52]} Kh3 {[%emt 0:00:14]} 54. Kd2 {[%emt 0:01:16]} Kxg2 {[%emt 0:00:07]} 55. Ke2 {[%emt 0:00:03]} Re8+ {[%emt 0:00:08]} 0-1

[Event "2nd Cambridge Open 2024"]
[Site "Cambridge"]
[Date "2024.02.22"]
[Round "6.45"]
[White "Prince, Alan R"]
[Black "Hutchinson, Norman A"]
[Result "1/2-1/2"]
[ECO "A07"]
[WhiteElo "1652"]
[BlackElo "1962"]
[Annotator "RC"]
[PlyCount "130"]
[EventDate "2024.02.18"]
[EventType "swiss"]
[EventCountry "ENG"]
[SourceTitle "playchess.com"]
[Source "ChessBase"]
[SourceQuality "1"]
[TimeControl "5400+30"]

1. Nf3 {[%emt 0:00:03]} Nf6 {[%emt 0:00:06]} 2. g3 {[%emt 0:00:08]} c6 {[%emt 0:00:05]} 3. Bg2 {[%emt 0:00:07]} d5 {[%emt 0:00:15]} 4. d3 {[%emt 0:00:07]} Bg4 {[%emt 0:01:27]} 5. h3 {[%emt 0:00:37]} Bxf3 {[%emt 0:00:30]} 6. Bxf3 {[%emt 0:00:31]} e5 {[%emt 0:00:11]} 7. Nd2 {[%emt 0:00:27]} Nbd7 {[%emt 0:05:05]} 8. O-O {[%emt 0:01:13]} Bc5 {[%emt 0:00:39]} 9. e4 {[%emt 0:00:42]} O-O {[%emt 0:00:26]} 10. c3 {[%emt 0:02:00]} dxe4 {[%emt 0:01:34]} 11. dxe4 {[%emt 0:01:43]} Qc7 {[%emt 0:03:08]} 12. b4 {[%emt 0:02:05]} Be7 {[%emt 0:00:50]} 13. Bb2 {[%emt 0:08:52]} Rfd8 {[%emt 0:06:17]} 14. Qe2 {[%emt 0:04:04]} Nf8 {[%emt 0:03:23]} 15. Rfd1 {[%emt 0:04:55]} Rd7 {[%emt 0:05:14]} 16. Nc4 {[%emt 0:02:13]} Rad8 {[%emt 0:02:56]} 17. Rxd7 {[%emt 0:08:42]} Rxd7 {[%emt 0:01:02]} 18. Rd1 {[%emt 0:00:18]} Rxd1+ {[%emt 0:01:57]} 19. Qxd1 {[%emt 0:00:18]} b5 {[%emt 0:00:39]} 20. Ne3 {[%emt 0:03:10]} Qd7 {[%emt 0:02:57]} 21. Qxd7 {[%emt 0:14:15]} N8xd7 {[%emt 0:03:08]} 22. Ng4 {[%emt 0:03:43]} Kf8 {[%emt 0:08:30]} 23. Nxf6 {[%emt 0:02:06]} Nxf6 {[%emt 0:00:40]} 24. Bc1 {[%emt 0:00:45]} Ke8 {[%emt 0:02:02]} 25. Be3 {[%emt 0:00:33]} a6 {[%emt 0:00:19]} 26. Kf1 {[%emt 0:00:39]} Kd7 {[%emt 0:01:53]} 27. Ke2 {[%emt 0:00:32]} c5 {[%emt 0:01:01]} 28. a3 {[%emt 0:01:35]} Kc6 {[%emt 0:01:26]} 29. Bg2 {[%emt 0:01:34]} Ne8 {[%emt 0:00:35]} 30. f4 {[%emt 0:01:35]} f6 {[%emt 0:02:30]} 31. Bf3 {[%emt 0:03:15]} cxb4 {[%emt 0:01:19]} 32. axb4 {[%emt 0:01:28]} Bd8 {[%emt 0:01:17]} 33. Kd3 {[%emt 0:03:41]} Bb6 {[%emt 0:04:45]} 34. Bd1 {[%emt 0:02:25]} Bxe3 {[%emt 0:05:00]} 35. Kxe3 {[%emt 0:00:03]} Nd6 {[%emt 0:00:32]} 36. Bb3 {[%emt 0:03:26]} Nc4+ {[%emt 0:03:36]} 37. Kd3 {[%emt 0:00:04]} Nd6 {[%emt 0:02:21]} 38. Ke3 {[%emt 0:02:18]} Kb6 {[%emt 0:02:13]} 39. Kd3 {[%emt 0:01:50]} a5 {[%emt 0:01:10]} 40. bxa5+ {[%emt 0:01:13]} Kxa5 {[%emt 0:00:08]} 41. Ke3 {[%emt 0:07:04]} Kb6 {[%emt 0:02:27]} 42. Kd3 {[%emt 0:00:32]} Kc5 {[%emt 0:00:29]} 43. Be6 {[%emt 0:02:01]} Ne8 {[%emt 0:01:59]} 44. Bb3 {[%emt 0:01:19]} Nc7 {[%emt 0:02:36]} 45. Bf7 {[%emt 0:00:22]} Na8 {[%emt 0:00:27]} 46. Bb3 {[%emt 0:00:12]} Nc7 {[%emt 0:00:29]} 47. Bf7 {[%emt 0:00:05]} Na6 {[%emt 0:00:17]} 48. Bb3 {[%emt 0:00:13]} Nb8 {[%emt 0:00:31]} 49. Be6 {[%emt 0:00:15]} Nc6 {[%emt 0:00:14]} 50. Bf7 {[%emt 0:00:49]} exf4 {[%emt 0:02:04]} 51. gxf4 {[%emt 0:00:02]} g5 {[%emt 0:00:32]} 52. Ke3 {[%emt 0:01:16]} h6 {[%emt 0:01:00]} 53. Kf3 {[%emt 0:01:18]} b4 {[%emt 0:01:50]} 54. cxb4+ {[%emt 0:00:38]} Nxb4 {[%emt 0:00:20]} 55. Kg4 {[%emt 0:01:15]} Nd3 {[%emt 0:00:26]} 56. fxg5 {[%emt 0:00:25]} fxg5 {[%emt 0:00:49]} 57. Kh5 {[%emt 0:02:54]} Kd4 {[%emt 0:00:28]} 58. Kxh6 {[%emt 0:00:45]} g4 {[%emt 0:02:15]} 59. hxg4 {[%emt 0:00:11]} Ne5 {[%emt 0:00:13]} 60. Bg6 {[%emt 0:03:25]} Nxg4+ {[%emt 0:00:05]} 61. Kg5 {[%emt 0:00:22]} Ne5 {[%emt 0:00:32]} 62. Bf5 {[%emt 0:00:52]} Nf3+ {[%emt 0:00:25]} 63. Kf6 {[%emt 0:00:16]} Ne5 {[%emt 0:00:21]} 64. Kg5 {[%emt 0:00:32]} Nf3+ {[%emt 0:00:34]} 65. Kf4 {[%emt 0:00:24]} Ne5 {[%emt 0:00:09]} 1/2-1/2

[Event "2nd Cambridge Open 2024"]
[Site "Cambridge"]
[Date "2024.02.22"]
[Round "6.47"]
[White "Banerjee, Supratit"]
[Black "Gardner, Phillip K"]
[Result "1-0"]
[ECO "B22"]
[WhiteElo "1984"]
[BlackElo "1769"]
[Annotator "RC"]
[PlyCount "47"]
[EventDate "2024.02.18"]
[EventType "swiss"]
[EventCountry "ENG"]
[SourceTitle "playchess.com"]
[Source "ChessBase"]
[SourceQuality "1"]
[TimeControl "5400+30"]

1. e4 {[%emt 0:00:09]} c5 {[%emt 0:00:04]} 2. c3 {[%emt 0:00:05]} b6 {[%emt 0:00:22]} 3. d4 {[%emt 0:00:04]} Bb7 {[%emt 0:00:31]} 4. Bd3 {[%emt 0:00:37]} Nf6 {[%emt 0:00:43]} 5. Nd2 {[%emt 0:00:29]} cxd4 {[%emt 0:02:22]} 6. cxd4 {[%emt 0:00:08]} Nc6 {[%emt 0:00:41]} 7. Ne2 {[%emt 0:00:33]} Nb4 {[%emt 0:02:52]} 8. Bb1 {[%emt 0:00:38]} Ba6 {[%emt 0:06:37]} 9. Nf3 {[%emt 0:00:30]} e6 {[%emt 0:01:45]} 10. O-O {[%emt 0:01:39]} Bb7 {[%emt 0:04:24]} 11. a3 {[%emt 0:01:12]} Na6 {[%emt 0:00:15]} 12. Nc3 {[%emt 0:00:30]} Nc7 {[%emt 0:00:31]} 13. Re1 {[%emt 0:00:54]} Be7 {[%emt 0:00:15]} 14. Qd3 {[%emt 0:05:13]} d6 {[%emt 0:04:50]} 15. Bg5 {[%emt 0:01:01]} Qd7 {[%emt 0:04:20]} 16. Bc2 {[%emt 0:02:25]} Ba6 {[%emt 0:07:54]} 17. Qd2 {[%emt 0:02:53]} h6 {[%emt 0:02:14]} 18. Bf4 {[%emt 0:02:35]} Rc8 {[%emt 0:00:51]} 19. Rad1 {[%emt 0:06:07]} Bb7 {[%emt 0:06:51]} 20. d5 {[%emt 0:08:14]} e5 {[%emt 0:06:23]} 21. Bxe5 {[%emt 0:03:50]} O-O {[%emt 0:02:16]} 22. Bf4 {[%emt 0:03:31]} Rfe8 {[%emt 0:03:58]} 23. Nd4 {[%emt 0:00:47]} Bf8 {[%emt 0:00:40]} 24. Ba4 {[%emt 0:58:26]} 1-0